fUSD/lending_fUSD_20240423
["ID","MTS","AMOUNT","RATE_DAILY","PERIOD"]
[323295052,1713879044011,-527.02,0.00011745,2]
[323295053,1713879044021,-500.0,0.00011745,2]
[323295054,1713879044031,-630.36,0.00011745,2]
[323295055,1713879044041,-500.0,0.00011745,2]
[323295056,1713879044050,-500.0,0.00011745,2]
[323295057,1713879044061,-500.0,0.00011745,2]
[323295058,1713879044070,-692.69,0.00011745,2]
[323295059,1713879044079,-500.0,0.00011745,2]
[323295060,1713879044089,-500.0,0.00011745,2]
[323295061,1713879044098,-500.0,0.00011745,2]
[323295062,1713879044107,-500.0,0.00011745,2]
[323295063,1713879044117,-1172.75,0.00011745,2]
[323295064,1713879044126,-500.0,0.00011745,2]
[323295065,1713879044135,-500.0,0.00011745,2]
[323295066,1713879044145,-500.0,0.00011745,2]
[323295067,1713879044156,-743.0,0.00011745,2]
[323295068,1713879044166,-675.43,0.00011745,2]
[323295069,1713879044175,-500.0,0.00011745,2]
[323295070,1713879044184,-500.0,0.00011745,2]
[323295071,1713879044193,-500.0,0.00011745,2]
[323295072,1713879044203,-500.0,0.00011745,2]
[323295073,1713879044212,-500.0,0.00011745,2]
[323295074,1713879044222,-500.0,0.00011745,2]
[323295075,1713879044231,-1312.46,0.00011745,2]
[323295076,1713879044241,-677.67,0.00011745,2]
[323295077,1713879044250,-933.21,0.00011745,2]
[323295078,1713879044261,-500.0,0.00011745,2]
[323295079,1713879044270,-500.0,0.00011745,2]
[323295080,1713879044279,-795.71,0.00011745,2]
[323295081,1713879044289,-500.0,0.00011745,2]
[323295082,1713879044299,-500.0,0.00011745,2]
[323295083,1713879044311,-515.21,0.00011745,2]
[323295084,1713879044320,-500.0,0.00011745,2]
[323295085,1713879044330,-500.0,0.00011745,2]
[323295086,1713879044339,-2059.68,0.00011745,2]
[323295087,1713879044348,-636.05,0.00011745,2]
[323295088,1713879044357,-500.0,0.00011745,2]
[323295089,1713879044367,-500.0,0.00011745,2]
[323295090,1713879044376,-500.0,0.00011745,2]
[323295091,1713879044385,-500.0,0.00011745,2]
[323295092,1713879044394,-581.28,0.00011745,2]
[323295093,1713879044403,-834.35,0.00011745,2]
[323295094,1713879044413,-500.0,0.00011745,2]
[323295095,1713879044422,-500.0,0.00011745,2]
[323295096,1713879044432,-500.0,0.00011745,2]
[323295097,1713879044441,-506.45,0.00011745,2]
[323295098,1713879044451,-615.15,0.00011745,2]
[323295099,1713879044460,-500.0,0.00011745,2]
[323295100,1713879044469,-500.0,0.00011745,2]
[323295101,1713879044478,-511.2,0.00011745,2]
[323295102,1713879044487,-500.0,0.00011745,2]
[323295103,1713879044496,-2072.39,0.00011745,2]
[323295104,1713879044505,-500.0,0.00011745,2]
[323295105,1713879044514,-500.0,0.00011745,2]
[323295106,1713879044526,-273.44,0.00011745,2]
[323295107,1713879044535,-500.0,0.00011745,2]
[323295108,1713879044545,-27976.82,0.00011745,2]
[323295109,1713879044554,-912.15,0.00011745,2]
[323295110,1713879044564,-500.0,0.00011745,2]
[323295111,1713879044573,-782.52,0.00011745,2]
[323295112,1713879044582,-707.42,0.00011745,2]
[323295113,1713879044591,-626.48,0.00011745,2]
[323295114,1713879044600,-500.0,0.00011745,2]
[323295115,1713879044609,-500.0,0.00011745,2]
[323295116,1713879044619,-500.0,0.00011745,2]
[323295117,1713879044628,-500.0,0.00011745,2]
[323295118,1713879044637,-3473.51,0.00011745,2]
[323295119,1713879044647,-4476.31,0.00011745,2]
[323295120,1713879044656,-500.0,0.00011745,2]
[323295121,1713879044666,-500.0,0.00011745,2]
[323295122,1713879044675,-885.23,0.00011745,2]
[323295123,1713879044684,-502.46,0.00011745,2]
[323295124,1713879044693,-500.0,0.00011745,2]
[323295125,1713879044703,-523.52,0.00011745,2]
[323295126,1713879044712,-500.0,0.00011745,2]
[323295127,1713879044721,-1665.8,0.00011745,2]
[323295128,1713879044731,-1425.31,0.00011745,2]
[323295129,1713879044741,-500.0,0.00011745,2]
[323295130,1713879044750,-950.72,0.00011745,2]
[323295131,1713879044759,-347.02690716,0.00011745,2]
[323295132,1713879044770,-500.0,0.00011745,2]
[323295133,1713879044779,-500.0,0.00011745,2]
[323295134,1713879044789,-500.0,0.00011745,2]
[323295135,1713879044798,-1495.28,0.00011745,2]
[323295136,1713879044807,-500.0,0.00011745,2]
[323295137,1713879044817,-500.0,0.00011745,2]
[323295138,1713879044826,-500.0,0.00011745,2]
[323295139,1713879044835,-500.0,0.00011745,2]
[323295140,1713879044844,-500.0,0.00011745,2]
[323295141,1713879044856,-534.48,0.00011745,2]
[323295142,1713879044865,-504.09,0.00011745,2]
[323295143,1713879044874,-888.67,0.00011745,2]
[323295144,1713879044883,-1009.16,0.00011745,2]
[323295145,1713879044892,-842.74,0.00011745,2]
[323295146,1713879044901,-4748.36,0.00011745,2]
[323295147,1713879044912,-500.0,0.00011745,2]
[323295148,1713879044921,-637.91,0.00011745,2]
[323295149,1713879044930,-1000.0,0.00011745,2]
[323295150,1713879044939,-643.14,0.00011745,2]
[323295151,1713879044951,-500.0,0.00011745,2]
[323295152,1713879044960,-500.0,0.00011745,2]
[323295153,1713879044970,-550.83,0.00011745,2]
[323295154,1713879044979,-500.0,0.00011745,2]
[323295155,1713879044989,-500.0,0.00011745,2]
[323295156,1713879044997,-500.0,0.00011745,2]
[323295157,1713879045006,-2386.36,0.00011745,2]
[323295158,1713879045017,-500.0,0.00011745,2]
[323295159,1713879045027,-500.0,0.00011745,2]
[323295160,1713879045038,-228.6397026,0.00011745,2]
[323295161,1713879045047,-1928.19,0.00011745,2]
[323295162,1713879045058,-1977.83,0.00011745,2]
[323295163,1713879045069,-500.0,0.00011745,2]
[323295164,1713879045078,-500.0,0.00011745,2]
[323295165,1713879045087,-500.0,0.00011745,2]
[323295166,1713879045096,-500.0,0.00011745,2]
[323295167,1713879045106,-1868.98,0.00011745,2]
[323295168,1713879045115,-500.0,0.00011745,2]
[323295169,1713879045125,-500.0,0.00011745,2]
[323295170,1713879045325,-500.0,0.00011745,2]
[323295171,1713879045335,-1984.84,0.00011745,2]
[323295172,1713879045345,-500.0,0.00011745,2]
[323295173,1713879045355,-306.64,0.00011745,2]
[323295174,1713879045364,-619.17,0.00011745,2]
[323295175,1713879045373,-500.0,0.00011745,2]
[323295176,1713879045383,-500.0,0.00011745,2]
[323295177,1713879045393,-500.0,0.00011745,2]
[323295178,1713879045402,-500.0,0.00011745,2]
[323295179,1713879045411,-1402.94,0.00011745,2]
[323295180,1713879045421,-500.0,0.00011745,2]
[323295181,1713879045431,-576.72,0.00011745,2]
[323295182,1713879045440,-500.0,0.00011745,2]
[323295183,1713879045449,-500.0,0.00011745,2]
[323295184,1713879045458,-500.0,0.00011745,2]
[323295185,1713879045467,-895.03,0.00011745,2]
[323295186,1713879045476,-500.0,0.00011745,2]
[323295187,1713879045485,-715.88,0.00011745,2]
[323295188,1713879045495,-999.39,0.00011745,2]
[323295189,1713879045504,-500.0,0.00011745,2]
[323295190,1713879045513,-500.0,0.00011746,2]
[323295191,1713879045523,-500.0,0.00011746,2]
[323295192,1713879045532,-500.0,0.00011746,2]
[323295193,1713879045541,-500.0,0.00011746,2]
[323295194,1713879045551,-500.0,0.00011746,2]
[323295195,1713879045563,-500.0,0.00011746,2]
[323295196,1713879045572,-500.0,0.00011746,2]
[323295197,1713879045582,-500.0,0.00011747,2]
[323295199,1713879045591,-500.0,0.00011747,2]
[323295201,1713879045600,-500.0,0.00011747,2]
[323295203,1713879045609,-500.0,0.00011747,2]
[323295205,1713879045619,-500.0,0.00011747,2]
[323295207,1713879045628,-500.0,0.00011747,2]
[323295209,1713879045637,-500.0,0.00011747,2]
[323295211,1713879045647,-500.0,0.00011747,2]
[323295213,1713879045657,-500.0,0.00011747,2]
[323295214,1713879045667,-791.32,0.00011747,2]
[323295216,1713879045676,-500.0,0.00011747,2]
[323295218,1713879045686,-500.0,0.00011747,2]
[323295220,1713879045695,-500.0,0.00011747,2]
[323295222,1713879045705,-500.0,0.00011747,2]
[323295224,1713879045715,-500.0,0.00011747,2]
[323295225,1713879045724,-500.0,0.00011747,2]
[323295226,1713879045733,-500.0,0.00011747,2]
[323295228,1713879045743,-500.0,0.00011747,2]
[323295229,1713879045753,-500.0,0.00011747,2]
[323295230,1713879045762,-615.07,0.00011747,2]
[323295231,1713879045772,-500.0,0.00011747,2]
[323295232,1713879045781,-300.0,0.000118,4]
[323295233,1713879045790,-358.16,0.00011833,2]
[323295234,1713879045798,-791.32,0.00011889,2]
[323295235,1713879045808,-600.0,0.000119,4]
[323295236,1713879045827,-2845.29422286,0.00011919,2]
[323295237,1713879045837,-163.9550383,0.0001192,2]
[323295238,1713879045847,-258.0,0.00011956,2]
[323295239,1713879045857,-1858.0,0.00011956,2]
[323295240,1713879045866,-610.0,0.00011956,2]
[323295241,1713879045876,-807.0,0.00011956,2]
[323295242,1713879045886,-437.0,0.00011956,2]
[323295243,1713879045894,-2445.0,0.00011956,2]
[323295244,1713879045904,-402.0,0.00011956,2]
[323295245,1713879045913,-1474.0,0.00011956,2]
[323295246,1713879045923,-3120.0,0.00011956,2]
[323295247,1713879045933,-150.0,0.00011956,2]
[323295248,1713879045944,-214.0,0.00011956,2]
[323295249,1713879045960,-1641.0,0.00011956,2]
[323295250,1713879045971,-443.0,0.00011956,2]
[323295251,1713879045981,-1140.0,0.00011956,2]
[323295252,1713879045992,-195.0,0.00011956,2]
[323295253,1713879046003,-5730.0,0.00011956,2]
[323295254,1713879046013,-969.0,0.00011956,2]
[323295255,1713879046023,-2295.0,0.00011956,2]
[323295256,1713879046034,-462.0,0.00011956,2]
[323295257,1713879046044,-1394.0,0.00011956,2]
[323295258,1713879046053,-5894.0,0.00011956,2]
[323295259,1713879046073,-2706.0,0.00011956,2]
[323295260,1713879046082,-37696.0,0.00011956,2]
[323295261,1713879046091,-1227.0,0.00011956,2]
[323295262,1713879046100,-542.0,0.00011956,2]
[323295263,1713879046109,-1000.0,0.0001198,2]
[323295265,1713879046117,-500.0,0.0001198,2]
[323295267,1713879046127,-4579.07236194,0.00011999,2]
[323295269,1713879046136,-5058.0,0.00012,2]
[323295271,1713879046144,-5300.0,0.00012,2]
[323295273,1713879046153,-3069.43072971,0.00012,2]
[323295275,1713879046163,-2845.29422279,0.00012008,2]
[323295277,1713879046172,-155.37784564,0.00012017,2]
[323295279,1713879046182,-155.0,0.00012017,2]
[323295280,1713879046191,-487.2863411,0.00012017,2]
[323295281,1713879046200,-500.0,0.00012017,2]
[323295282,1713879046209,-282.54,0.00012017,2]
[323295283,1713879046219,-500.0,0.00012017,2]
[323295284,1713879046228,-500.0,0.00012017,2]
[323295285,1713879046238,-500.0,0.00012017,2]
[323295286,1713879046247,-500.0,0.00012017,2]
[323295287,1713879046256,-3759.13519931,0.00012018,2]
[323295288,1713879046266,-2188.35,0.00012018,2]
[323295289,1713879046275,-500.0,0.00012018,2]
[323295290,1713879046285,-500.0,0.00012018,2]
[323295291,1713879046294,-500.0,0.00012018,2]
[323295292,1713879046303,-1394.36,0.00012018,2]
[323295293,1713879046317,-816.8,0.00012018,2]
[323295294,1713879046327,-500.0,0.00012018,2]
[323295295,1713879046337,-500.0,0.00012018,2]
[323295296,1713879046346,-500.0,0.00012018,2]
[323295297,1713879046356,-910.14,0.00012018,2]
[323295298,1713879046366,-500.0,0.00012018,2]
[323295299,1713879046375,-500.0,0.00012018,2]
[323295300,1713879046384,-3076.54,0.00012018,2]
[323295301,1713879046394,-1296.05,0.00012018,2]
[323295302,1713879046404,-500.0,0.00012018,2]
[323295303,1713879046413,-544.58,0.00012018,2]
[323295304,1713879046422,-508.61,0.00012018,2]
[323295305,1713879046431,-1145.07,0.00012018,2]
[323295306,1713879046441,-855.89,0.00012018,2]
[323295307,1713879046451,-500.0,0.00012018,2]
[323295308,1713879046460,-830.47,0.00012018,2]
[323295309,1713879046469,-567.03,0.00012018,2]
[323295310,1713879046478,-2823.02,0.00012018,2]
[323295311,1713879046487,-500.0,0.00012018,2]
[323295312,1713879046497,-500.0,0.00012018,2]
[323295313,1713879046506,-500.0,0.00012018,2]
[323295314,1713879046516,-500.0,0.00012018,2]
[323295315,1713879046525,-2294.75,0.00012018,2]
[323295316,1713879046534,-500.0,0.00012018,2]
[323295317,1713879046543,-559.13,0.00012018,2]
[323295318,1713879046552,-1838.04,0.00012018,2]
[323295319,1713879046564,-500.0,0.00012018,2]
[323295320,1713879046573,-1806.62,0.00012018,2]
[323295321,1713879046582,-11361.37,0.00012018,2]
[323295322,1713879046591,-680.07,0.00012018,2]
[323295323,1713879046600,-500.0,0.00012018,2]
[323295324,1713879046609,-894.91,0.00012018,2]
[323295325,1713879046618,-1660.22,0.00012018,2]
[323295326,1713879046627,-5808.11,0.00012018,2]
[323295327,1713879046636,-551.97,0.00012018,2]
[323295328,1713879046646,-500.0,0.00012018,2]
[323295329,1713879046655,-604.3,0.00012018,2]
[323295330,1713879046664,-500.0,0.00012018,2]
[323295331,1713879046673,-586.62,0.00012018,2]
[323295332,1713879046682,-2254.8,0.00012018,2]
[323295333,1713879046691,-500.0,0.00012018,2]
[323295334,1713879046700,-5569.83,0.00012018,2]
[323295335,1713879046710,-789.79,0.00012018,2]
[323295336,1713879046719,-1722.31,0.00012018,2]
[323295337,1713879046728,-811.09,0.00012018,2]
[323295338,1713879046737,-500.0,0.00012018,2]
[323295339,1713879046747,-2712.98,0.00012018,2]
[323295340,1713879046756,-500.0,0.00012018,2]
[323295341,1713879046765,-558.75,0.00012018,2]
[323295342,1713879046775,-571.91,0.00012018,2]
[323295343,1713879046784,-810.57,0.00012018,2]
[323295344,1713879046794,-500.0,0.00012018,2]
[323295345,1713879046803,-500.0,0.00012018,2]
[323295346,1713879046813,-183.19,0.00012018,2]
[323295347,1713879046822,-1124.2,0.00012018,2]
[323295348,1713879046831,-532.22,0.00012018,2]
[323295349,1713879046842,-500.0,0.00012018,2]
[323295350,1713879046851,-12796.31,0.00012018,2]
[323295351,1713879046862,-22994.43,0.00012018,2]
[323295352,1713879046871,-536.02,0.00012019,2]
[323295353,1713879046880,-500.0,0.00012019,2]
[323295354,1713879046889,-164.75,0.00012019,2]
[323295355,1713879046899,-500.0,0.00012019,2]
[323295356,1713879046910,-500.0,0.00012019,2]
[323295357,1713879046920,-500.0,0.00012019,2]
[323295358,1713879046931,-240.61979609,0.00012019,2]
[323295359,1713879046941,-558.48,0.00012019,2]
[323295360,1713879046955,-500.0,0.00012019,2]
[323295361,1713879046965,-500.0,0.00012019,2]
[323295362,1713879046974,-635.91,0.00012019,2]
[323295363,1713879046983,-500.0,0.00012019,2]
[323295364,1713879046993,-346.14,0.00012019,2]
[323295365,1713879047002,-410.58,0.00012019,2]
[323295366,1713879047012,-500.0,0.00012019,2]
[323295367,1713879047022,-298.85109511,0.00012019,2]
[323295368,1713879047033,-500.0,0.00012019,2]
[323295369,1713879047042,-500.0,0.00012019,2]
[323295370,1713879047052,-433.43,0.00012019,2]
[323295371,1713879047063,-154.5,0.00012019,2]
[323295372,1713879047073,-500.0,0.00012019,2]
[323295373,1713879047082,-286.5,0.00012019,2]
[323295374,1713879047091,-500.0,0.00012019,2]
[323295375,1713879047101,-662.1,0.00012019,2]
[323295376,1713879047110,-500.0,0.00012019,2]
[323295377,1713879047120,-500.0,0.00012019,2]
[323295378,1713879047129,-339.28,0.00012019,2]
[323295379,1713879047139,-500.0,0.00012019,2]
[323295380,1713879047148,-508.56,0.00012019,2]
[323295381,1713879047157,-458.85,0.00012019,2]
[323295382,1713879047167,-500.0,0.00012019,2]
[323295383,1713879047176,-500.0,0.00012019,2]
[323295384,1713879047185,-658.17,0.00012019,2]
[323295385,1713879047195,-663.15,0.00012019,2]
[323295386,1713879047205,-500.0,0.00012019,2]
[323295387,1713879047215,-500.0,0.00012019,2]
[323295388,1713879047224,-500.0,0.00012019,2]
[323295389,1713879047234,-151.46,0.00012019,2]
[323295390,1713879047243,-472.63,0.00012019,2]
[323295391,1713879047252,-500.0,0.00012019,2]
[323295392,1713879047262,-500.0,0.00012019,2]
[323295393,1713879047271,-155.81,0.00012019,2]
[323295394,1713879047280,-500.0,0.00012019,2]
[323295395,1713879047290,-630.3,0.00012019,2]
[323295396,1713879047299,-500.0,0.00012019,2]
[323295397,1713879047308,-500.0,0.00012019,2]
[323295398,1713879047320,-527.86,0.00012019,2]
[323295399,1713879047330,-500.0,0.00012019,2]
[323295400,1713879047339,-500.0,0.00012019,2]
[323295401,1713879047349,-500.0,0.00012019,2]
[323295402,1713879047358,-500.0,0.00012019,2]
[323295403,1713879047367,-614.59,0.00012019,2]
[323295404,1713879047376,-500.0,0.00012019,2]
[323295405,1713879047386,-500.0,0.00012019,2]
[323295406,1713879047396,-504.34618358,0.00012019,2]
[323295407,1713879047405,-552.51,0.00012019,2]
[323295408,1713879047414,-500.0,0.00012019,2]
[323295409,1713879047423,-419.15308399,0.00012019,2]
[323295410,1713879047433,-899.31,0.00012019,2]
[323295411,1713879047443,-628.39543804,0.00012019,2]
[323295412,1713879047452,-921.24,0.00012019,2]
[323295413,1713879047462,-500.0,0.00012019,2]
[323295414,1713879047471,-500.0,0.00012019,2]
[323295415,1713879047480,-739.64,0.00012019,2]
[323295416,1713879047489,-500.0,0.00012019,2]
[323295417,1713879047498,-500.0,0.00012019,2]
[323295418,1713879047507,-710.84,0.00012019,2]
[323295419,1713879047516,-500.0,0.00012019,2]
[323295420,1713879047526,-840.34,0.00012019,2]
[323295421,1713879047535,-500.0,0.00012019,2]
[323295422,1713879047545,-500.0,0.00012019,2]
[323295423,1713879047554,-500.0,0.00012019,2]
[323295424,1713879047568,-500.0,0.00012019,2]
[323295425,1713879047578,-500.0,0.00012019,2]
[323295426,1713879047588,-992.52,0.00012019,2]
[323295427,1713879047597,-602.21,0.00012019,2]
[323295428,1713879047606,-500.0,0.00012019,2]
[323295429,1713879047616,-500.0,0.00012019,2]
[323295430,1713879047625,-500.0,0.00012019,2]
[323295431,1713879047634,-500.0,0.00012019,2]
[323295432,1713879047699,-500.0,0.00012019,2]
[323295433,1713879047708,-500.0,0.00012019,2]
[323295434,1713879047719,-500.0,0.00012019,2]
[323295435,1713879047728,-500.0,0.00012019,2]
[323295436,1713879047737,-500.0,0.00012019,2]
[323295437,1713879047747,-500.0,0.00012019,2]
[323295438,1713879047756,-500.0,0.00012019,2]
[323295439,1713879047766,-928.15,0.00012019,2]
[323295440,1713879047775,-667.27,0.00012019,2]
[323295441,1713879047784,-239.07825592,0.00012019,2]
[323295442,1713879047794,-500.0,0.00012019,2]
[323295443,1713879047803,-500.0,0.00012019,2]
[323295444,1713879047813,-500.0,0.00012019,2]
[323295445,1713879047823,-1267.59,0.00012019,2]
[323295446,1713879047833,-916.56,0.00012019,2]
[323295447,1713879047842,-500.0,0.00012019,2]
[323295448,1713879047851,-500.0,0.00012019,2]
[323295449,1713879047860,-628.78,0.00012019,2]
[323295450,1713879047870,-500.0,0.00012019,2]
[323295451,1713879047879,-628.94,0.00012019,2]
[323295452,1713879047888,-738.57,0.00012019,2]
[323295453,1713879047897,-500.0,0.00012019,2]
[323295454,1713879047908,-510.22,0.00012019,2]
[323295455,1713879047918,-500.0,0.00012019,2]
[323295456,1713879047928,-500.0,0.00012019,2]
[323295457,1713879047938,-500.0,0.00012019,2]
[323295458,1713879047947,-694.77,0.00012019,2]
[323295459,1713879047959,-808.82,0.00012019,2]
[323295460,1713879047969,-689.13,0.00012019,2]
[323295461,1713879047979,-848.09,0.00012019,2]
[323295462,1713879047989,-500.0,0.00012019,2]
[323295463,1713879047998,-500.0,0.00012019,2]
[323295464,1713879048007,-500.0,0.00012019,2]
[323295465,1713879048017,-607.66,0.00012019,2]
[323295466,1713879048026,-500.0,0.00012019,2]
[323295467,1713879048036,-500.0,0.00012019,2]
[323295468,1713879048046,-500.0,0.00012019,2]
[323295469,1713879048056,-904.27,0.00012019,2]
[323295470,1713879048067,-500.0,0.00012019,2]
[323295471,1713879048076,-500.0,0.00012019,2]
[323295472,1713879048085,-500.0,0.00012019,2]
[323295473,1713879048094,-500.0,0.00012019,2]
[323295474,1713879048103,-500.0,0.00012019,2]
[323295475,1713879048112,-500.0,0.00012019,2]
[323295476,1713879048121,-1336.63,0.00012019,2]
[323295477,1713879048131,-522.57,0.00012019,2]
[323295478,1713879048140,-506.8,0.00012019,2]
[323295479,1713879048149,-500.0,0.00012019,2]
[323295480,1713879048159,-927.47,0.00012019,2]
[323295481,1713879048170,-500.0,0.00012019,2]
[323295482,1713879048179,-841.25,0.00012019,2]
[323295483,1713879048188,-500.0,0.00012019,2]
[323295484,1713879048197,-648.16,0.00012019,2]
[323295485,1713879048206,-500.0,0.00012019,2]
[323295486,1713879048215,-500.0,0.00012019,2]
[323295487,1713879048225,-500.0,0.00012019,2]
[323295488,1713879048234,-500.0,0.00012019,2]
[323295489,1713879048243,-500.0,0.00012019,2]
[323295490,1713879048252,-500.0,0.00012019,2]
[323295491,1713879048261,-500.0,0.00012019,2]
[323295492,1713879048270,-500.0,0.00012019,2]
[323295493,1713879048279,-500.0,0.00012019,2]
[323295494,1713879048289,-500.0,0.00012019,2]
[323295495,1713879048298,-500.0,0.00012019,2]
[323295496,1713879048307,-500.0,0.00012019,2]
[323295497,1713879048317,-500.0,0.00012019,2]
[323295498,1713879048327,-500.0,0.00012019,2]
[323295499,1713879048336,-605.56,0.00012019,2]
[323295500,1713879048345,-500.0,0.00012019,2]
[323295501,1713879048355,-500.0,0.00012019,2]
[323295502,1713879048364,-605.36,0.00012019,2]
[323295503,1713879048373,-500.0,0.00012019,2]
[323295504,1713879048384,-966.1,0.00012019,2]
[323295505,1713879048393,-500.0,0.00012019,2]
[323295506,1713879048402,-500.0,0.00012019,2]
[323295507,1713879048411,-500.0,0.00012019,2]
[323295508,1713879048420,-500.0,0.00012019,2]
[323295509,1713879048429,-500.0,0.00012019,2]
[323295510,1713879048439,-485.57601648,0.00012019,2]
[323295511,1713879048449,-567.95,0.00012019,2]
[323295512,1713879048459,-500.0,0.00012019,2]
[323295513,1713879048468,-500.0,0.00012019,2]
[323295514,1713879048477,-500.0,0.00012019,2]
[323295515,1713879048486,-500.0,0.00012019,2]
[323295516,1713879048495,-150.0,0.00012019,2]
[323295517,1713879048504,-525.95,0.00012019,2]
[323295518,1713879048513,-500.0,0.00012019,2]
[323295519,1713879048522,-500.0,0.00012019,2]
[323295520,1713879048532,-500.0,0.00012019,2]
[323295521,1713879048540,-535.83,0.00012019,2]
[323295522,1713879048549,-520.95,0.00012019,2]
[323295523,1713879048559,-639.77,0.00012019,2]
[323295524,1713879048571,-500.0,0.00012019,2]
[323295525,1713879048586,-500.0,0.00012019,2]
[323295526,1713879048598,-500.0,0.00012019,2]
[323295527,1713879048607,-500.0,0.00012019,2]
[323295528,1713879048616,-500.0,0.00012019,2]
[323295529,1713879048625,-500.0,0.00012019,2]
[323295530,1713879048635,-500.0,0.00012019,2]
[323295531,1713879048651,-629.43,0.00012019,2]
[323295532,1713879048668,-500.0,0.00012019,2]
[323295533,1713879048677,-809.97,0.00012019,2]
[323295534,1713879048686,-500.0,0.00012019,2]
[323295535,1713879048695,-505.41,0.00012019,2]
[323295536,1713879048704,-500.0,0.00012019,2]
[323295537,1713879048713,-500.0,0.00012019,2]
[323295538,1713879048722,-630.36,0.00012019,2]
[323295539,1713879048731,-500.0,0.00012019,2]
[323295540,1713879048740,-500.0,0.00012019,2]
[323295541,1713879048748,-500.0,0.00012019,2]
[323295542,1713879048757,-692.69,0.00012019,2]
[323295543,1713879048766,-500.0,0.00012019,2]
[323295544,1713879048775,-500.0,0.00012019,2]
[323295545,1713879048783,-500.0,0.00012019,2]
[323295546,1713879048792,-164.73704397,0.00012019,2]
[323295547,1713879048816,-1172.75,0.00012019,2]
[323295548,1713879048825,-500.0,0.00012019,2]
[323295549,1713879048833,-500.0,0.00012019,2]
[323295550,1713879048843,-500.0,0.00012019,2]
[323295551,1713879048852,-743.0,0.00012019,2]
[323295552,1713879048861,-675.43,0.00012019,2]
[323295553,1713879048871,-500.0,0.00012019,2]
[323295554,1713879048880,-500.0,0.00012019,2]
[323295555,1713879048888,-500.0,0.00012019,2]
[323295556,1713879048898,-500.0,0.00012019,2]
[323295557,1713879048907,-500.0,0.00012019,2]
[323295558,1713879048916,-500.0,0.00012019,2]
[323295559,1713879048926,-1312.46,0.00012019,2]
[323295560,1713879048935,-677.67,0.00012019,2]
[323295561,1713879048945,-933.21,0.00012019,2]
[323295562,1713879048957,-500.0,0.00012019,2]
[323295563,1713879048968,-500.0,0.00012019,2]
[323295564,1713879048977,-795.71,0.00012019,2]
[323295565,1713879048987,-500.0,0.00012019,2]
[323295566,1713879048997,-500.0,0.00012019,2]
[323295567,1713879049007,-515.21,0.00012019,2]
[323295568,1713879049016,-500.0,0.00012019,2]
[323295569,1713879049026,-500.0,0.00012019,2]
[323295570,1713879049035,-2059.68,0.00012019,2]
[323295571,1713879049044,-636.05,0.00012019,2]
[323295572,1713879049053,-500.0,0.00012019,2]
[323295573,1713879049062,-500.0,0.00012019,2]